[Event "Titled Tuesday Blitz August 15 Late 2023"]
[White "Urbina Perez, Juan Antonio"]
[Black "Petersson, Kjell"]
[WhiteFideId "2217368"]
[BlackFideId "1705148"]
[WhiteElo "2526"]
[BlackElo "2182"]
[Result "1-0"]
[Round "1"]
[TimeControl "180+1"]
[Date "2023.08.15"]
[WhiteClock "0:00:37"]
[BlackClock "0:00:01"]
[Board "160"]

1. e4 {[%clk 0:02:58]}  c5 {[%clk 0:02:59]} 2. Nf3 {[%clk 0:02:57]}  d6 {[%clk 0:03:00]} 3. d4 {[%clk 0:02:55]}  cxd4 {[%clk 0:03:00]} 4. Nxd4 {[%clk 0:02:55]}  Nf6 {[%clk 0:03:01]} 5. Nc3 {[%clk 0:02:56]}  g6 {[%clk 0:03:01]} 6. Be3 {[%clk 0:02:56]}  Bg7 {[%clk 0:03:02]} 7. f3 {[%clk 0:02:56]}  O-O {[%clk 0:03:02]} 8. Qd2 {[%clk 0:02:57]}  Nc6 {[%clk 0:03:02]} 9. h4 {[%clk 0:02:57]}  d5 {[%clk 0:02:56]} 10. Nxc6 {[%clk 0:02:54]}  bxc6 {[%clk 0:02:56]} 11. O-O-O {[%clk 0:02:51]}  Be6 {[%clk 0:02:36]} 12. e5 {[%clk 0:02:49]}  Nh5 {[%clk 0:02:33]} 13. f4 {[%clk 0:02:42]}  Qa5 {[%clk 0:02:10]} 14. Kb1 {[%clk 0:02:42]}  Rab8 {[%clk 0:02:08]} 15. Ne2 {[%clk 0:02:26]}  Qa4 {[%clk 0:01:48]} 16. b3 {[%clk 0:02:15]}  Qa3 {[%clk 0:01:43]} 17. Nd4 {[%clk 0:02:14]}  Bg4 {[%clk 0:01:37]} 18. Be2 {[%clk 0:02:08]}  Bxe2 {[%clk 0:01:34]} 19. Nxe2 {[%clk 0:02:08]}  Bh8 {[%clk 0:00:52]} 20. g4 {[%clk 0:02:05]}  Ng7 {[%clk 0:00:52]} 21. h5 {[%clk 0:02:05]}  a5 {[%clk 0:00:41]} 22. Nd4 {[%clk 0:02:01]}  c5 {[%clk 0:00:35]} 23. Nc6 {[%clk 0:02:00]}  Rb7 {[%clk 0:00:34]} 24. hxg6 {[%clk 0:01:57]}  hxg6 {[%clk 0:00:32]} 25. Qh2 {[%clk 0:01:55]}  Nh5 {[%clk 0:00:20]} 26. gxh5 {[%clk 0:01:54]}  g5 {[%clk 0:00:19]} 27. h6 {[%clk 0:01:51]}  Kh7 {[%clk 0:00:16]} 28. Qh3 {[%clk 0:01:40]}  e6 {[%clk 0:00:15]} 29. fxg5 {[%clk 0:01:30]}  c4 {[%clk 0:00:14]} 30. Bc1 {[%clk 0:01:19]}  Qc5 {[%clk 0:00:14]} 31. Nd4 {[%clk 0:01:10]}  Bxe5 {[%clk 0:00:14]} 32. Bb2 {[%clk 0:01:09]}  cxb3 {[%clk 0:00:11]} 33. Qd3+ {[%clk 0:01:03]}  Kh8 {[%clk 0:00:07]} 34. Nxb3 {[%clk 0:01:03]}  Qd6 {[%clk 0:00:05]} 35. Bxe5+ {[%clk 0:00:50]}  Qxe5 {[%clk 0:00:06]} 36. Qd4 {[%clk 0:00:51]}  Qxd4 {[%clk 0:00:04]} 37. Rxd4 {[%clk 0:00:51]}  Ra8 {[%clk 0:00:02]} 38. Kc1 {[%clk 0:00:51]}  a4 {[%clk 0:00:03]} 39. Nc5 {[%clk 0:00:51]}  Rc7 {[%clk 0:00:02]} 40. Nd3 {[%clk 0:00:50]}  Rac8 {[%clk 0:00:03]} 41. Rh2 {[%clk 0:00:50]}  a3 {[%clk 0:00:03]} 42. Ne5 {[%clk 0:00:49]}  Rb8 {[%clk 0:00:02]} 43. Rd3 {[%clk 0:00:45]}  Rb2 {[%clk 0:00:02]} 44. Rxa3 {[%clk 0:00:44]}  Kh7 {[%clk 0:00:02]} 45. Rf3 {[%clk 0:00:39]}  Rcb7 {[%clk 0:00:01]} 46. Rxf7+ {[%clk 0:00:38]}  Rxf7 {[%clk 0:00:01]} 47. Nxf7 {[%clk 0:00:39]}  Rxa2 {[%clk 0:00:01]} 48. g6+ {[%clk 0:00:39]}  Kxg6 {[%clk 0:00:01]} 49. h7 {[%clk 0:00:39]}  Kxf7 {[%clk 0:00:01]} 50. h8=Q {[%clk 0:00:37]}  Ra1+ {[%clk 0:00:01]} 1-0


[Site "https://www.chess.com"]

[Event "Titled Tuesday Blitz August 15 Late 2023"]
[White "Oliveira, Tiago Batista"]
[Black "Leenhouts, Koen"]
[WhiteFideId "2108291"]
[BlackFideId "1008439"]
[WhiteElo "2170"]
[BlackElo "2524"]
[Result "0-1"]
[Round "1"]
[TimeControl "180+1"]
[Date "2023.08.15"]
[WhiteClock "0:00:00"]
[BlackClock "0:00:17"]
[Board "163"]

1. d4 {[%clk 0:02:57]}  Nf6 {[%clk 0:02:56]} 2. c4 {[%clk 0:02:56]}  c5 {[%clk 0:02:57]} 3. d5 {[%clk 0:02:48]}  b5 {[%clk 0:02:55]} 4. cxb5 {[%clk 0:02:47]}  a6 {[%clk 0:02:54]} 5. bxa6 {[%clk 0:02:46]}  Bxa6 {[%clk 0:02:55]} 6. Nf3 {[%clk 0:02:45]}  g6 {[%clk 0:02:55]} 7. g3 {[%clk 0:02:43]}  Bg7 {[%clk 0:02:55]} 8. Bg2 {[%clk 0:02:31]}  d6 {[%clk 0:02:53]} 9. O-O {[%clk 0:02:31]}  O-O {[%clk 0:02:51]} 10. Nc3 {[%clk 0:02:31]}  Nbd7 {[%clk 0:02:49]} 11. Qc2 {[%clk 0:02:30]}  Qb6 {[%clk 0:02:43]} 12. Rd1 {[%clk 0:02:25]}  Rfb8 {[%clk 0:02:39]} 13. Rb1 {[%clk 0:02:25]}  Ng4 {[%clk 0:02:30]} 14. Bg5 {[%clk 0:02:22]}  Kf8 {[%clk 0:02:18]} 15. Qe4 {[%clk 0:02:18]}  Ndf6 {[%clk 0:02:08]} 16. Bxf6 {[%clk 0:02:11]}  Nxf6 {[%clk 0:02:09]} 17. Qh4 {[%clk 0:02:10]}  Qb4 {[%clk 0:02:05]} 18. e4 {[%clk 0:01:54]}  Kg8 {[%clk 0:01:59]} 19. a3 {[%clk 0:01:39]}  Qb7 {[%clk 0:01:41]} 20. e5 {[%clk 0:01:34]}  Ne8 {[%clk 0:01:37]} 21. Ne4 {[%clk 0:00:31]}  Be2 {[%clk 0:01:30]} 22. Nfg5 {[%clk 0:00:18]}  h6 {[%clk 0:01:24]} 23. Nxf7 {[%clk 0:00:14]}  Kxf7 {[%clk 0:01:12]} 24. Re1 {[%clk 0:00:10]}  Bd3 {[%clk 0:01:05]} 25. Qf4+ {[%clk 0:00:03]}  Kg8 {[%clk 0:01:01]} 26. exd6 {[%clk 0:00:04]}  Nxd6 {[%clk 0:00:55]} 27. Nxc5 {[%clk 0:00:05]}  Qb5 {[%clk 0:00:45]} 28. Rxe7 {[%clk 0:00:05]}  Nf5 {[%clk 0:00:33]} 29. d6 {[%clk 0:00:04]}  Bxb1 {[%clk 0:00:25]} 30. Bxa8 {[%clk 0:00:04]}  Rxa8 {[%clk 0:00:20]} 31. Rxg7+ {[%clk 0:00:00]}  Nxg7 {[%clk 0:00:17]} 0-1


[Site "https://www.chess.com"]

[Event "Titled Tuesday Blitz August 15 Late 2023"]
[White "Khandelwal, Ankush"]
[Black "campochess"]
[WhiteFideId "413470"]
[WhiteElo "2519"]
[BlackElo "2156"]
[Result "1-0"]
[Round "1"]
[TimeControl "180+1"]
[Date "2023.08.15"]
[WhiteClock "0:00:57"]
[BlackClock "0:00:43"]
[Board "166"]

1. e4 {[%clk 0:02:57]}  c5 {[%clk 0:02:59]} 2. Nf3 {[%clk 0:02:52]}  Nc6 {[%clk 0:02:58]} 3. Bb5 {[%clk 0:02:49]}  e5 {[%clk 0:02:57]} 4. O-O {[%clk 0:02:43]}  Qc7 {[%clk 0:02:50]} 5. c3 {[%clk 0:02:32]}  Nf6 {[%clk 0:02:48]} 6. d4 {[%clk 0:02:23]}  cxd4 {[%clk 0:02:47]} 7. cxd4 {[%clk 0:02:21]}  exd4 {[%clk 0:02:47]} 8. e5 {[%clk 0:02:13]}  Ne4 {[%clk 0:02:28]} 9. Re1 {[%clk 0:02:05]}  Nc5 {[%clk 0:02:26]} 10. Nxd4 {[%clk 0:02:01]}  Nxd4 {[%clk 0:02:24]} 11. Qxd4 {[%clk 0:02:01]}  Ne6 {[%clk 0:02:24]} 12. Qg4 {[%clk 0:01:52]}  Qa5 {[%clk 0:02:16]} 13. Nc3 {[%clk 0:01:51]}  Be7 {[%clk 0:02:10]} 14. Bc4 {[%clk 0:01:47]}  O-O {[%clk 0:01:55]} 15. Bh6 {[%clk 0:01:47]}  g6 {[%clk 0:01:37]} 16. Bxf8 {[%clk 0:01:38]}  Bxf8 {[%clk 0:01:35]} 17. Nd5 {[%clk 0:01:31]}  Bg7 {[%clk 0:01:24]} 18. Rad1 {[%clk 0:01:31]}  b5 {[%clk 0:01:22]} 19. Ne7+ {[%clk 0:01:25]}  Kf8 {[%clk 0:01:15]} 20. Bxe6 {[%clk 0:01:18]}  dxe6 {[%clk 0:01:10]} 21. Nc6 {[%clk 0:01:16]}  Qc7 {[%clk 0:01:06]} 22. Rd8+ {[%clk 0:01:15]}  Qxd8 {[%clk 0:01:03]} 23. Nxd8 {[%clk 0:01:16]}  Bd7 {[%clk 0:01:02]} 24. Qb4+ {[%clk 0:01:13]}  Ke8 {[%clk 0:01:01]} 25. Nb7 {[%clk 0:01:10]}  a5 {[%clk 0:00:58]} 26. Nd6+ {[%clk 0:01:10]}  Kf8 {[%clk 0:00:57]} 27. Qc5 {[%clk 0:01:09]}  Kg8 {[%clk 0:00:56]} 28. Qc7 {[%clk 0:01:08]}  Be8 {[%clk 0:00:55]} 29. Nxe8 {[%clk 0:00:58]}  Rxe8 {[%clk 0:00:53]} 30. Rd1 {[%clk 0:00:58]}  a4 {[%clk 0:00:43]} 31. Rd8 {[%clk 0:00:57]} 1-0


[Site "https://www.chess.com"]

[Event "Titled Tuesday Blitz August 15 Late 2023"]
[White "Hartikainen, Jarmo"]
[Black "Janaszak, Dawid"]
[WhiteFideId "503134"]
[BlackFideId "1119206"]
[WhiteElo "2107"]
[BlackElo "2517"]
[Result "0-1"]
[Round "1"]
[TimeControl "180+1"]
[Date "2023.08.15"]
[WhiteClock "0:00:00"]
[BlackClock "0:00:59"]
[Board "169"]

1. e4 {[%clk 0:03:00]}  c5 {[%clk 0:02:59]} 2. c3 {[%clk 0:03:00]}  e5 {[%clk 0:02:58]} 3. d4 {[%clk 0:02:55]}  cxd4 {[%clk 0:02:57]} 4. cxd4 {[%clk 0:02:55]}  exd4 {[%clk 0:02:58]} 5. Nf3 {[%clk 0:02:53]}  Nc6 {[%clk 0:02:58]} 6. Nxd4 {[%clk 0:02:50]}  Nf6 {[%clk 0:02:58]} 7. Nxc6 {[%clk 0:02:28]}  bxc6 {[%clk 0:02:57]} 8. Bd3 {[%clk 0:02:20]}  Bc5 {[%clk 0:02:53]} 9. O-O {[%clk 0:02:18]}  d6 {[%clk 0:02:50]} 10. Bg5 {[%clk 0:02:06]}  h6 {[%clk 0:02:49]} 11. Bh4 {[%clk 0:02:06]}  Qe7 {[%clk 0:02:35]} 12. Nc3 {[%clk 0:01:51]}  g5 {[%clk 0:02:33]} 13. Bg3 {[%clk 0:01:49]}  h5 {[%clk 0:02:33]} 14. e5 {[%clk 0:01:41]}  dxe5 {[%clk 0:01:56]} 15. Bxe5 {[%clk 0:01:38]}  Bg4 {[%clk 0:01:41]} 16. Qa4 {[%clk 0:01:17]}  O-O {[%clk 0:01:34]} 17. Qxc6 {[%clk 0:01:16]}  Qxe5 {[%clk 0:01:28]} 18. Rac1 {[%clk 0:00:32]}  Rac8 {[%clk 0:01:22]} 19. Qb5 {[%clk 0:00:24]}  Bd6 {[%clk 0:01:15]} 20. Qxe5 {[%clk 0:00:19]}  Bxe5 {[%clk 0:01:16]} 21. f3 {[%clk 0:00:18]}  Be6 {[%clk 0:01:14]} 22. Rfe1 {[%clk 0:00:17]}  Bxc3 {[%clk 0:01:09]} 23. bxc3 {[%clk 0:00:17]}  Rfd8 {[%clk 0:01:09]} 24. Ba6 {[%clk 0:00:14]}  Rc6 {[%clk 0:01:08]} 25. Bb5 {[%clk 0:00:14]}  Rb6 {[%clk 0:01:07]} 26. c4 {[%clk 0:00:13]}  Rd2 {[%clk 0:01:03]} 27. Red1 {[%clk 0:00:13]}  Rxa2 {[%clk 0:01:02]} 28. h3 {[%clk 0:00:09]}  g4 {[%clk 0:01:02]} 29. hxg4 {[%clk 0:00:09]}  hxg4 {[%clk 0:01:03]} 30. fxg4 {[%clk 0:00:07]}  Nxg4 {[%clk 0:01:03]} 31. Rd8+ {[%clk 0:00:02]}  Kg7 {[%clk 0:01:03]} 32. Rcd1 {[%clk 0:00:01]}  Ne3 {[%clk 0:01:02]} 33. R1d2 {[%clk 0:00:01]}  Rxd2 {[%clk 0:01:00]} 34. Rxd2 {[%clk 0:00:02]}  Nxc4 {[%clk 0:01:01]} 35. Bxc4 {[%clk 0:00:01]}  Bxc4 {[%clk 0:01:02]} 36. Kf2 {[%clk 0:00:01]}  Rf6+ {[%clk 0:01:00]} 37. Kg3 {[%clk 0:00:00]}  a5 {[%clk 0:00:59]} 0-1


[Site "https://www.chess.com"]

[Event "Titled Tuesday Blitz August 15 Late 2023"]
[White "Berezin, Viktor"]
[Black "Milovic, Aleksandra"]
[WhiteFideId "14107872"]
[BlackFideId "933988"]
[WhiteElo "2517"]
[BlackElo "2101"]
[Result "1-0"]
[Round "1"]
[TimeControl "180+1"]
[Date "2023.08.15"]
[WhiteClock "0:00:44"]
[BlackClock "0:00:04"]
[Board "170"]

1. d4 {[%clk 0:02:58]}  d5 {[%clk 0:02:59]} 2. c4 {[%clk 0:02:58]}  e6 {[%clk 0:02:58]} 3. cxd5 {[%clk 0:02:56]}  exd5 {[%clk 0:02:57]} 4. Nc3 {[%clk 0:02:57]}  Nf6 {[%clk 0:02:55]} 5. Bf4 {[%clk 0:02:55]}  c6 {[%clk 0:02:50]} 6. Qc2 {[%clk 0:02:52]}  Bd6 {[%clk 0:02:47]} 7. Bg5 {[%clk 0:02:48]}  O-O {[%clk 0:02:45]} 8. e3 {[%clk 0:02:48]}  Nbd7 {[%clk 0:02:34]} 9. Bd3 {[%clk 0:02:47]}  h6 {[%clk 0:02:31]} 10. Bh4 {[%clk 0:02:47]}  Be7 {[%clk 0:02:00]} 11. Nge2 {[%clk 0:02:46]}  Nh5 {[%clk 0:02:00]} 12. Bxe7 {[%clk 0:02:37]}  Qxe7 {[%clk 0:02:00]} 13. O-O-O {[%clk 0:02:26]}  b5 {[%clk 0:01:49]} 14. g4 {[%clk 0:02:22]}  Nhf6 {[%clk 0:01:47]} 15. Rdg1 {[%clk 0:02:22]}  b4 {[%clk 0:01:44]} 16. Nd1 {[%clk 0:02:22]}  c5 {[%clk 0:01:31]} 17. g5 {[%clk 0:02:17]}  Ne4 {[%clk 0:01:27]} 18. gxh6 {[%clk 0:02:11]}  g6 {[%clk 0:01:26]} 19. f3 {[%clk 0:02:07]}  c4 {[%clk 0:01:16]} 20. h7+ {[%clk 0:01:33]}  Kh8 {[%clk 0:01:10]} 21. Bxe4 {[%clk 0:01:27]}  dxe4 {[%clk 0:01:09]} 22. fxe4 {[%clk 0:01:26]}  Bb7 {[%clk 0:01:06]} 23. Rg4 {[%clk 0:01:25]}  Nf6 {[%clk 0:01:02]} 24. Rhg1 {[%clk 0:01:09]}  Nxg4 {[%clk 0:01:00]} 25. Rxg4 {[%clk 0:01:09]}  f5 {[%clk 0:00:48]} 26. exf5 {[%clk 0:01:06]}  gxf5 {[%clk 0:00:46]} 27. Nf4 {[%clk 0:01:02]}  Kxh7 {[%clk 0:00:14]} 28. Rg3 {[%clk 0:00:46]}  Qe4 {[%clk 0:00:09]} 29. Qe2 {[%clk 0:00:44]}  Rf6 {[%clk 0:00:04]} 30. Qh5+ {[%clk 0:00:42]}  Rh6 {[%clk 0:00:04]} 31. Qf7+ {[%clk 0:00:43]}  Kh8 {[%clk 0:00:04]} 32. Qg7# {[%clk 0:00:44]} 1-0


[Site "https://www.chess.com"]

[Event "Titled Tuesday Blitz August 15 Late 2023"]
[White "Yurtseven, Melih"]
[Black "dorpato"]
[WhiteFideId "6312160"]
[WhiteElo "2510"]
[BlackElo "2066"]
[Result "1-0"]
[Round "1"]
[TimeControl "180+1"]
[Date "2023.08.15"]
[WhiteClock "0:01:45"]
[BlackClock "0:00:04"]
[Board "176"]

1. c4 {[%clk 0:02:57]}  e5 {[%clk 0:02:53]} 2. Nc3 {[%clk 0:02:58]}  Nc6 {[%clk 0:02:51]} 3. g3 {[%clk 0:02:57]}  d6 {[%clk 0:02:50]} 4. Bg2 {[%clk 0:02:57]}  Be6 {[%clk 0:02:49]} 5. d3 {[%clk 0:02:57]}  Qd7 {[%clk 0:02:46]} 6. Rb1 {[%clk 0:02:57]}  g6 {[%clk 0:02:42]} 7. b4 {[%clk 0:02:57]}  Bg7 {[%clk 0:02:19]} 8. b5 {[%clk 0:02:55]}  Nce7 {[%clk 0:02:10]} 9. Bxb7 {[%clk 0:02:54]}  Rb8 {[%clk 0:02:06]} 10. Bg2 {[%clk 0:02:54]}  Nf6 {[%clk 0:02:01]} 11. Nf3 {[%clk 0:02:49]}  h6 {[%clk 0:01:57]} 12. O-O {[%clk 0:02:48]}  Bh3 {[%clk 0:01:53]} 13. a4 {[%clk 0:02:44]}  Bxg2 {[%clk 0:01:40]} 14. Kxg2 {[%clk 0:02:43]}  h5 {[%clk 0:01:26]} 15. h4 {[%clk 0:02:35]}  O-O {[%clk 0:01:01]} 16. e4 {[%clk 0:02:29]}  c6 {[%clk 0:00:51]} 17. Be3 {[%clk 0:02:26]}  d5 {[%clk 0:00:47]} 18. Bc5 {[%clk 0:02:14]}  d4 {[%clk 0:00:35]} 19. Ne2 {[%clk 0:02:13]}  Qc7 {[%clk 0:00:16]} 20. Qc1 {[%clk 0:02:04]}  Rfe8 {[%clk 0:00:11]} 21. Qa3 {[%clk 0:02:03]}  Nc8 {[%clk 0:00:11]} 22. Rfc1 {[%clk 0:01:59]}  Nb6 {[%clk 0:00:11]} 23. a5 {[%clk 0:01:58]}  Nbd7 {[%clk 0:00:10]} 24. Bd6 {[%clk 0:01:57]}  Qc8 {[%clk 0:00:08]} 25. Bxb8 {[%clk 0:01:58]}  Nxb8 {[%clk 0:00:09]} 26. a6 {[%clk 0:01:55]}  c5 {[%clk 0:00:09]} 27. b6 {[%clk 0:01:52]}  axb6 {[%clk 0:00:09]} 28. Rxb6 {[%clk 0:01:53]}  Nfd7 {[%clk 0:00:09]} 29. Rb7 {[%clk 0:01:51]}  Nc6 {[%clk 0:00:06]} 30. Rcb1 {[%clk 0:01:48]}  Ndb8 {[%clk 0:00:06]} 31. a7 {[%clk 0:01:44]}  Nxa7 {[%clk 0:00:05]} 32. Qxa7 {[%clk 0:01:44]}  Nc6 {[%clk 0:00:05]} 33. Qxc5 {[%clk 0:01:45]}  Qd7 {[%clk 0:00:04]} 34. Rxd7 {[%clk 0:01:45]} 1-0


[Site "https://www.chess.com"]

[Event "Titled Tuesday Blitz August 15 Late 2023"]
[White "Danishcrown"]
[Black "Aydin, Gulenay"]
[BlackFideId "34557431"]
[WhiteElo "2044"]
[BlackElo "2509"]
[Result "0-1"]
[Round "1"]
[TimeControl "180+1"]
[Date "2023.08.15"]
[WhiteClock "0:00:25"]
[BlackClock "0:00:12"]
[Board "177"]

1. d4 {[%clk 0:03:00]}  Nf6 {[%clk 0:02:59]} 2. Bf4 {[%clk 0:03:00]}  g6 {[%clk 0:02:59]} 3. e3 {[%clk 0:03:01]}  Bg7 {[%clk 0:02:59]} 4. Nf3 {[%clk 0:03:01]}  O-O {[%clk 0:02:59]} 5. Bd3 {[%clk 0:03:01]}  d6 {[%clk 0:03:00]} 6. c4 {[%clk 0:03:01]}  Nbd7 {[%clk 0:02:55]} 7. Nc3 {[%clk 0:03:02]}  Re8 {[%clk 0:02:55]} 8. Bg3 {[%clk 0:03:01]}  e5 {[%clk 0:02:55]} 9. dxe5 {[%clk 0:02:58]}  dxe5 {[%clk 0:02:54]} 10. Be2 {[%clk 0:02:50]}  c6 {[%clk 0:02:52]} 11. O-O {[%clk 0:02:49]}  Qe7 {[%clk 0:02:37]} 12. Rc1 {[%clk 0:02:48]}  Nh5 {[%clk 0:02:23]} 13. a3 {[%clk 0:02:29]}  Nxg3 {[%clk 0:02:22]} 14. hxg3 {[%clk 0:02:29]}  Nf6 {[%clk 0:02:20]} 15. b4 {[%clk 0:02:26]}  Bg4 {[%clk 0:02:17]} 16. Qb3 {[%clk 0:02:16]}  Red8 {[%clk 0:02:08]} 17. c5 {[%clk 0:02:15]}  Be6 {[%clk 0:02:05]} 18. Bc4 {[%clk 0:02:14]}  Bxc4 {[%clk 0:02:03]} 19. Qxc4 {[%clk 0:02:14]}  Nd5 {[%clk 0:02:03]} 20. Rfd1 {[%clk 0:02:11]}  Nxc3 {[%clk 0:01:45]} 21. Qxc3 {[%clk 0:02:04]}  e4 {[%clk 0:01:21]} 22. Nd4 {[%clk 0:02:03]}  Rd5 {[%clk 0:01:19]} 23. Qc4 {[%clk 0:01:49]}  Rad8 {[%clk 0:01:18]} 24. Rc2 {[%clk 0:01:44]}  Bxd4 {[%clk 0:01:11]} 25. exd4 {[%clk 0:01:43]}  e3 {[%clk 0:01:04]} 26. Re2 {[%clk 0:01:30]}  exf2+ {[%clk 0:01:04]} 27. Kf1 {[%clk 0:01:11]}  Qg5 {[%clk 0:00:56]} 28. Rd3 {[%clk 0:01:04]}  Qh5 {[%clk 0:00:48]} 29. Kxf2 {[%clk 0:00:53]}  Qg4 {[%clk 0:00:45]} 30. Rf3 {[%clk 0:00:31]}  Qxd4+ {[%clk 0:00:36]} 31. Qxd4 {[%clk 0:00:31]}  Rxd4 {[%clk 0:00:37]} 32. Re7 {[%clk 0:00:31]}  Rd2+ {[%clk 0:00:35]} 33. Kg1 {[%clk 0:00:25]}  Rd1+ {[%clk 0:00:26]} 34. Kh2 {[%clk 0:00:23]}  R1d5 {[%clk 0:00:06]} 35. Rfxf7 {[%clk 0:00:22]}  Rh5+ {[%clk 0:00:06]} 36. Kg1 {[%clk 0:00:21]}  Rd1+ {[%clk 0:00:07]} 37. Kf2 {[%clk 0:00:21]}  Rf5+ {[%clk 0:00:07]} 38. Rxf5 {[%clk 0:00:21]}  gxf5 {[%clk 0:00:08]} 39. Rxb7 {[%clk 0:00:22]}  Rd2+ {[%clk 0:00:08]} 40. Kf3 {[%clk 0:00:22]}  Rd3+ {[%clk 0:00:09]} 41. Kf4 {[%clk 0:00:22]}  Rxa3 {[%clk 0:00:09]} 42. Rc7 {[%clk 0:00:20]}  Ra4 {[%clk 0:00:07]} 43. Rxa7 {[%clk 0:00:19]}  Rxa7 {[%clk 0:00:07]} 44. Kxf5 {[%clk 0:00:17]}  Rb7 {[%clk 0:00:06]} 45. Ke6 {[%clk 0:00:17]}  Rxb4 {[%clk 0:00:06]} 46. Kd6 {[%clk 0:00:17]}  Rg4 {[%clk 0:00:05]} 47. Kxc6 {[%clk 0:00:18]}  Rxg3 {[%clk 0:00:06]} 48. Kd7 {[%clk 0:00:18]}  Rxg2 {[%clk 0:00:06]} 49. c6 {[%clk 0:00:19]}  Rc2 {[%clk 0:00:07]} 50. c7 {[%clk 0:00:19]}  h5 {[%clk 0:00:08]} 51. c8=Q+ {[%clk 0:00:19]}  Rxc8 {[%clk 0:00:09]} 52. Kxc8 {[%clk 0:00:20]}  h4 {[%clk 0:00:10]} 53. Kd8 {[%clk 0:00:21]}  h3 {[%clk 0:00:10]} 54. Kd7 {[%clk 0:00:21]}  h2 {[%clk 0:00:11]} 55. Kd6 {[%clk 0:00:22]}  h1=Q {[%clk 0:00:12]} 56. Kc5 {[%clk 0:00:23]}  Qd1 {[%clk 0:00:12]} 57. Kb6 {[%clk 0:00:24]}  Kf7 {[%clk 0:00:13]} 58. Kc7 {[%clk 0:00:24]}  Ke6 {[%clk 0:00:13]} 59. Kc6 {[%clk 0:00:25]}  Qd5+ {[%clk 0:00:13]} 60. Kb6 {[%clk 0:00:25]}  Qc4 {[%clk 0:00:13]} 61. Kb7 {[%clk 0:00:26]}  Kd6 {[%clk 0:00:13]} 62. Kb6 {[%clk 0:00:27]}  Qb3+ {[%clk 0:00:13]} 63. Ka6 {[%clk 0:00:24]}  Kc7 {[%clk 0:00:13]} 64. Ka7 {[%clk 0:00:25]}  Qb7# {[%clk 0:00:12]} 0-1


[Site "https://www.chess.com"]

[Event "Titled Tuesday Blitz August 15 Late 2023"]
[White "Hristodoulou, Panagiotis"]
[Black "Curtis, John"]
[WhiteFideId "4214340"]
[BlackFideId "3200256"]
[WhiteElo "2507"]
[BlackElo "2043"]
[Result "1-0"]
[Round "1"]
[TimeControl "180+1"]
[Date "2023.08.15"]
[WhiteClock "0:00:41"]
[BlackClock "0:00:00"]
[Board "178"]

1. e4 {[%clk 0:02:57]}  e5 {[%clk 0:02:56]} 2. Nf3 {[%clk 0:02:52]}  Nf6 {[%clk 0:02:55]} 3. Nxe5 {[%clk 0:02:49]}  Qe7 {[%clk 0:02:51]} 4. d4 {[%clk 0:02:48]}  d6 {[%clk 0:02:49]} 5. Nf3 {[%clk 0:02:48]}  Nxe4 {[%clk 0:02:49]} 6. Be2 {[%clk 0:02:48]}  d5 {[%clk 0:02:48]} 7. O-O {[%clk 0:02:47]}  Qd8 {[%clk 0:02:48]} 8. Nbd2 {[%clk 0:02:44]}  Nf6 {[%clk 0:02:44]} 9. Re1 {[%clk 0:02:42]}  Be7 {[%clk 0:02:42]} 10. Nf1 {[%clk 0:02:43]}  O-O {[%clk 0:02:42]} 11. Ng3 {[%clk 0:02:40]}  Bg4 {[%clk 0:02:36]} 12. h3 {[%clk 0:02:39]}  Bc8 {[%clk 0:02:28]} 13. Bd3 {[%clk 0:02:29]}  h6 {[%clk 0:02:10]} 14. Ne5 {[%clk 0:02:26]}  c5 {[%clk 0:02:03]} 15. dxc5 {[%clk 0:02:23]}  Bxc5 {[%clk 0:02:03]} 16. Qf3 {[%clk 0:02:20]}  Nc6 {[%clk 0:02:00]} 17. c3 {[%clk 0:02:19]}  Re8 {[%clk 0:01:46]} 18. Bf4 {[%clk 0:02:19]}  Be6 {[%clk 0:01:25]} 19. Nf5 {[%clk 0:02:01]}  Bxf5 {[%clk 0:01:20]} 20. Bxf5 {[%clk 0:02:02]}  Bd6 {[%clk 0:01:19]} 21. Nd3 {[%clk 0:01:54]}  Bxf4 {[%clk 0:01:17]} 22. Qxf4 {[%clk 0:01:52]}  Qb8 {[%clk 0:01:11]} 23. Qh4 {[%clk 0:01:44]}  Qd6 {[%clk 0:01:09]} 24. Rad1 {[%clk 0:01:39]}  Rxe1+ {[%clk 0:01:07]} 25. Rxe1 {[%clk 0:01:40]}  d4 {[%clk 0:01:05]} 26. c4 {[%clk 0:01:38]}  b6 {[%clk 0:00:55]} 27. a3 {[%clk 0:01:28]}  a5 {[%clk 0:00:44]} 28. Bg4 {[%clk 0:01:00]}  Re8 {[%clk 0:00:33]} 29. Rxe8+ {[%clk 0:01:00]}  Nxe8 {[%clk 0:00:33]} 30. Bf3 {[%clk 0:01:01]}  g5 {[%clk 0:00:13]} 31. Qe4 {[%clk 0:00:58]}  Ne7 {[%clk 0:00:13]} 32. Qa8 {[%clk 0:00:53]}  Qd7 {[%clk 0:00:10]} 33. Ne5 {[%clk 0:00:51]}  Qe6 {[%clk 0:00:09]} 34. Qxe8+ {[%clk 0:00:50]}  Kg7 {[%clk 0:00:09]} 35. Nd3 {[%clk 0:00:49]}  Qxc4 {[%clk 0:00:05]} 36. Qxe7 {[%clk 0:00:48]}  Qxd3 {[%clk 0:00:05]} 37. Qe5+ {[%clk 0:00:47]}  Kg8 {[%clk 0:00:05]} 38. Bd5 {[%clk 0:00:41]}  Qb1+ {[%clk 0:00:02]} 39. Kh2 {[%clk 0:00:41]}  Qxb2 {[%clk 0:00:00]} 40. Qe8+ {[%clk 0:00:41]} 1-0


[Site "https://www.chess.com"]